[Event "GER-ch Youth U14 2019"]
[Site "Willingen"]
[Date "2019.06.15"]
[Round "9.8"]
[White "Roehr, Oliver"]
[Black "Weidenhoefer, Max"]
[Result "1/2-1/2"]
[ECO "B12"]
[WhiteElo "1960"]
[BlackElo "1787"]
[Annotator "NA"]
[PlyCount "101"]
[EventDate "2019.06.07"]
[EventType "swiss"]
[EventRounds "9"]
[EventCountry "GER"]
[SourceTitle "playchess.com"]
[Source "ChessBase"]
[SourceQuality "1"]
[TimeControl "40/5400+30:1800+30"]

1. e4 {[%emt 0:00:00]} c6 {[%emt 0:00:00]} 2. d4 {[%emt 0:00:00]} d5 {[%emt 0:00:00]} 3. e5 {[%emt 0:00:00]} Bf5 {[%emt 0:00:00]} 4. Nc3 {[%emt 0:00:08]} e6 {[%emt 0:00:21]} 5. g4 {[%emt 0:00:37]} Bg6 {[%emt 0:00:15] unterminated} 6. Nge2 {[%emt 0:01:16] unterminated} c5 $11 {[%emt 0:08:32]} 7. h4 {[%emt 0:06:47]} h6 {[%emt 0:01:24]} 8. Nf4 {[%emt 0:05:36]} Bh7 {[%emt 0:00:53]} 9. Be3 {[%emt 0:10:46]} Nc6 {[%emt 0:11:26]} 10. Bd3 {[%emt 0:08:28]} cxd4 {[%emt 0:06:54]} 11. Bxd4 {[%emt 0:01:42]} Bxd3 {[%emt 0:02:17]} 12. Qxd3 {[%emt 0:00:26]} Nxd4 {[%emt 0:00:27]} 13. Qxd4 {[%emt 0:00:23]} Ne7 {[%emt 0:00:46]} 14. Nd3 {[%emt 0:08:57]} Nc6 {[%emt 0:00:56]} 15. Qf4 {[%emt 0:03:34]} Be7 {[%emt 0:02:08]} 16. Qg3 {[%emt 0:02:18]} Qa5 {[%emt 0:04:53]} 17. Kf1 {[%emt 0:12:18]} Nd4 {[%emt 0:06:14]} 18. Rc1 {[%emt 0:05:06]} Rc8 {[%emt 0:01:58]} 19. Qf4 {[%emt 0:07:40]} Rc4 {[%emt 0:04:14]} 20. Qe3 {[%emt 0:02:14]} Kd7 {[%emt 0:13:30]} 21. Kg2 {[%emt 0:03:17]} h5 {[%emt 0:04:41]} 22. b3 {[%emt 0:05:37]} Rxc3 {[%emt 0:16:10]} 23. Qxd4 {[%emt 0:00:24]} Ba3 {[%emt 0:04:18]} 24. b4 {[%emt 0:02:02]} Qc7 {[%emt 0:01:27]} 25. Nc5+ {[%emt 0:01:25]} Rxc5 {[%emt 0:00:12]} 26. bxc5 {[%emt 0:00:55]} Bxc1 {[%emt 0:00:32]} 27. Rxc1 {[%emt 0:00:12]} hxg4 {[%emt 0:00:38]} 28. c4 {[%emt 0:00:56]} Qc6 {[%emt 0:01:48]} 29. Rd1 {[%emt 0:02:06]} Rxh4 {[%emt 0:01:17]} 30. cxd5 {[%emt 0:03:52]} Qxd5+ {[%emt 0:00:36]} 31. Kg3 {[%emt 0:01:05]} Rh3+ {[%emt 0:01:17]} 32. Kxg4 {[%emt 0:00:08]} Ra3 {[%emt 0:00:56]} 33. Qxd5+ {[%emt 0:02:18]} exd5 {[%emt 0:00:01]} 34. Rxd5+ {[%emt 0:00:22]} Ke6 {[%emt 0:00:28]} 35. Rd6+ {[%emt 0:00:20]} Ke7 {[%emt 0:00:50]} 36. Rd2 {[%emt 0:01:12]} Rc3 {[%emt 0:00:30]} 37. Rb2 {[%emt 0:00:18]} Rxc5 {[%emt 0:00:53]} 38. Rxb7+ {[%emt 0:00:17]} Ke8 {[%emt 0:01:08]} 39. Rxa7 {[%emt 0:01:10]} Rxe5 {[%emt 0:00:07]} 40. f4 {[%emt 0:01:19]} Re1 {[%emt 0:01:58]} 41. a4 {[%emt 0:02:35]} f6 {[%emt 0:01:03]} 42. Kf5 {[%emt 0:04:02]} g5 {[%emt 0:01:49]} 43. fxg5 {[%emt 0:01:21]} fxg5 {[%emt 0:00:49]} 44. Kxg5 {[%emt 0:02:18]} Ra1 {[%emt 0:00:18]} 45. Kf6 {[%emt 0:01:03]} Kd8 {[%emt 0:00:20]} 46. Ke6 {[%emt 0:01:03]} Kc8 {[%emt 0:00:14]} 47. Kd6 {[%emt 0:00:15]} Kb8 {[%emt 0:00:09]} 48. Ra5 {[%emt 0:00:09]} Rd1+ {[%emt 0:00:23]} 49. Kc6 {[%emt 0:00:48]} Rc1+ {[%emt 0:00:57]} 50. Kb6 {[%emt 0:00:09]} Rh1 {[%emt 0:00:53]} 51. Rb5 {[%emt 0:01:33] normal} 1/2-1/2

[Event "GER-ch Youth U14 2019"]
[Site "Willingen"]
[Date "2019.06.15"]
[Round "9.9"]
[White "Deutsch, Christoph"]
[Black "von Krosigk, Florian"]
[Result "1-0"]
[ECO "B92"]
[WhiteElo "1937"]
[BlackElo "1926"]
[Annotator "NA"]
[PlyCount "94"]
[EventDate "2019.06.07"]
[EventType "swiss"]
[EventRounds "9"]
[EventCountry "GER"]
[SourceTitle "playchess.com"]
[Source "ChessBase"]
[SourceQuality "1"]
[TimeControl "40/5400+30:1800+30"]

1. e4 {[%emt 0:00:00]} c5 {[%emt 0:00:00]} 2. Nf3 {[%emt 0:00:00]} d6 {[%emt 0:00:00]} 3. d4 {[%emt 0:00:00]} cxd4 {[%emt 0:00:00]} 4. Nxd4 {[%emt 0:00:03]} Nf6 {[%emt 0:00:00]} 5. Nc3 {[%emt 0:00:11]} a6 {[%emt 0:00:09]} 6. Be2 {[%emt 0:00:31]} e5 {[%emt 0:00:46]} 7. Nb3 {[%emt 0:00:21]} Be7 {[%emt 0:00:19]} 8. Be3 {[%emt 0:01:40]} Be6 {[%emt 0:03:36]} 9. O-O {[%emt 0:01:37]} O-O {[%emt 0:00:58]} 10. Qd3 {[%emt 0:00:12]} Nc6 {[%emt 0:11:07]} 11. Nd5 {[%emt 0:02:09]} Nxd5 {[%emt 0:06:03]} 12. exd5 {[%emt 0:00:33]} Nb4 {[%emt 0:00:03]} 13. Qd2 {[%emt 0:02:04]} Nxd5 {[%emt 0:00:08]} 14. Bf3 {[%emt 0:00:06]} Nxe3 {[%emt 0:01:03]} 15. Qxe3 {[%emt 0:01:29]} Qc7 {[%emt 0:02:21]} 16. c3 {[%emt 0:02:40]} Rab8 {[%emt 0:06:49]} 17. Rad1 {[%emt 0:02:06]} b5 {[%emt 0:04:55]} 18. Bd5 {[%emt 0:06:56]} Bxd5 {[%emt 0:09:49]} 19. Rxd5 {[%emt 0:00:07]} f5 {[%emt 0:04:21]} 20. f4 {[%emt 0:06:39]} Qc6 {[%emt 0:16:11]} 21. Rfd1 {[%emt 0:01:58]} e4 {[%emt 0:01:19]} 22. g3 {[%emt 0:07:00]} g6 {[%emt 0:04:33]} 23. Kg2 {[%emt 0:02:35]} Rfd8 {[%emt 0:06:50]} 24. g4 {[%emt 0:03:37]} Rf8 {[%emt 0:02:15]} 25. Qh3 {[%emt 0:01:58]} Qc4 {[%emt 0:02:15]} 26. R1d2 {[%emt 0:04:54]} Kh8 {[%emt 0:03:05]} 27. g5 {[%emt 0:10:40]} Rfe8 {[%emt 0:02:15]} 28. Qe3 {[%emt 0:00:33]} Kg8 {[%emt 0:01:02]} 29. h4 {[%emt 0:00:54]} Ra8 {[%emt 0:04:14]} 30. h5 {[%emt 0:04:32]} Kf7 {[%emt 0:01:24]} 31. h6 {[%emt 0:02:51]} Rec8 {[%emt 0:02:00]} 32. Na5 {[%emt 0:03:44]} Qc7 {[%emt 0:00:47]} 33. Qd4 {[%emt 0:00:49]} Rg8 {[%emt 0:01:00]} 34. Nb3 {[%emt 0:03:12]} Qa7 {[%emt 0:01:13]} 35. Rxd6 {[%emt 0:02:47]} Qxd4 {[%emt 0:02:02]} 36. R6xd4 {[%emt 0:00:11]} Rgd8 {[%emt 0:01:10]} 37. Rxd8 {[%emt 0:00:23]} Rxd8 {[%emt 0:00:05]} 38. Rxd8 Bxd8 {[%emt 0:00:01]} 39. Nc5 {[%emt 0:00:27]} a5 {[%emt 0:00:13]} 40. Nd7 {[%emt 0:00:26]} Bc7 {[%emt 0:00:22]} 41. Kg3 {[%emt 0:31:48]} e3 {[%emt 0:30:26]} 42. Nc5 {[%emt 0:00:10]} Bb6 {[%emt 0:01:49]} 43. Nd3 {[%emt 0:01:51]} Ke6 {[%emt 0:00:07]} 44. Kf3 {[%emt 0:00:06]} Kd5 {[%emt 0:00:35]} 45. Ne5 {[%emt 0:02:02]} Bc7 {[%emt 0:00:00]} 46. Nxg6 {[%emt 0:00:00]} Kc4 {[%emt 0:00:00]} 47. Kxe3 {[%emt 0:00:00]} Kd5 {normal Ke4+} 1-0

[Event "GER-ch Youth U14 2019"]
[Site "Willingen"]
[Date "2019.06.15"]
[Round "9.10"]
[White "Kosev, Momchil"]
[Black "Farokhi, Keyvan"]
[Result "1/2-1/2"]
[ECO "A04"]
[WhiteElo "1827"]
[BlackElo "1963"]
[Annotator "NA"]
[PlyCount "68"]
[EventDate "2019.06.07"]
[EventType "swiss"]
[EventRounds "9"]
[EventCountry "GER"]
[SourceTitle "playchess.com"]
[Source "ChessBase"]
[SourceQuality "1"]
[TimeControl "40/5400+30:1800+30"]

1. Nf3 {[%emt 0:00:00]} g6 {[%emt 0:00:00]} 2. g3 {[%emt 0:00:00]} Bg7 {[%emt 0:00:00]} 3. Bg2 {[%emt 0:00:00]} Nf6 {[%emt 0:00:00]} 4. O-O {[%emt 0:00:00]} O-O {[%emt 0:00:04]} 5. d3 {[%emt 0:00:23]} d5 {[%emt 0:01:17]} 6. Nbd2 {[%emt 0:00:32]} b6 {[%emt 0:01:06]} 7. e4 {[%emt 0:08:11]} e6 {[%emt 0:01:25]} 8. Re1 {[%emt 0:02:48]} Bb7 {[%emt 0:05:05]} 9. e5 {[%emt 0:02:56]} Nfd7 {[%emt 0:00:10]} 10. Nf1 {[%emt 0:01:46]} c5 {[%emt 0:04:26]} 11. h4 {[%emt 0:00:46]} Qc7 {[%emt 0:02:37]} 12. Bf4 {[%emt 0:00:10]} Nc6 {[%emt 0:00:39]} 13. Qe2 {[%emt 0:00:33]} Rae8 {[%emt 0:08:55]} 14. N1h2 {[%emt 0:09:35]} Qc8 {[%emt 0:04:20]} 15. c4 {[%emt 0:05:00]} f6 {[%emt 0:11:26]} 16. exf6 {[%emt 0:01:52]} Nxf6 {[%emt 0:02:28]} 17. Bd6 {[%emt 0:02:42]} Rf7 {[%emt 0:01:19]} 18. Bh3 {[%emt 0:01:28]} Qd8 {[%emt 0:06:32]} 19. Be5 {[%emt 0:20:04]} Nxe5 {[%emt 0:03:06]} 20. Nxe5 {[%emt 0:03:21]} Rfe7 {[%emt 0:00:26]} 21. Rad1 {[%emt 0:06:00]} Nd7 {[%emt 0:12:03]} 22. Nhf3 {[%emt 0:03:35]} Nxe5 {[%emt 0:00:19]} 23. Nxe5 {[%emt 0:00:06]} d4 {[%emt 0:04:33]} 24. Bg2 {[%emt 0:02:19]} Bxg2 {[%emt 0:00:15]} 25. Kxg2 {[%emt 0:00:03]} Qd6 {[%emt 0:01:07]} 26. f4 {[%emt 0:02:42]} Bxe5 {[%emt 0:05:14]} 27. Qxe5 {[%emt 0:02:37]} Qc6+ {[%emt 0:01:17]} 28. Qe4 {[%emt 0:04:06]} Qa4 {[%emt 0:03:12]} 29. a3 {[%emt 0:01:35]} Qc2+ {[%emt 0:00:36]} 30. Qe2 {[%emt 0:00:13]} Qb3 {[%emt 0:00:24]} 31. Rd2 {[%emt 0:00:39]} e5 {[%emt 0:01:07]} 32. fxe5 {[%emt 0:00:26]} Rxe5 {[%emt 0:00:18]} 33. Qxe5 {[%emt 0:00:10]} Rxe5 {[%emt 0:00:07]} 34. Rxe5 {[%emt 0:00:03]} Qa4 {[%emt 0:00:46] normal} 1/2-1/2

[Event "GER-ch Youth U14 2019"]
[Site "Willingen"]
[Date "2019.06.15"]
[Round "9.11"]
[White "Matthaei, Jakob"]
[Black "Arakelian, Aik"]
[Result "1/2-1/2"]
[ECO "B22"]
[WhiteElo "1666"]
[BlackElo "1911"]
[Annotator "NA"]
[PlyCount "93"]
[EventDate "2019.06.07"]
[EventType "swiss"]
[EventRounds "9"]
[EventCountry "GER"]
[SourceTitle "playchess.com"]
[Source "ChessBase"]
[SourceQuality "1"]
[TimeControl "40/5400+30:1800+30"]

1. e4 {[%emt 0:00:00]} c5 {[%emt 0:00:00]} 2. c3 {[%emt 0:00:00]} Nf6 {[%emt 0:00:09]} 3. e5 {[%emt 0:00:00]} Nd5 {[%emt 0:00:11]} 4. d4 {[%emt 0:00:00]} cxd4 {[%emt 0:00:16]} 5. Nf3 {[%emt 0:00:00]} Nc6 {[%emt 0:00:09]} 6. cxd4 {[%emt 0:00:01]} d6 {[%emt 0:00:10]} 7. Bc4 {[%emt 0:00:07]} dxe5 {[%emt 0:00:12]} 8. dxe5 {[%emt 0:00:05]} Ndb4 {[%emt 0:00:14]} 9. Qb3 {[%emt 0:05:41]} e6 {[%emt 0:00:26]} 10. O-O {[%emt 0:10:40]} Na5 {[%emt 0:00:04]} 11. Bb5+ {[%emt 0:05:12]} Bd7 {[%emt 0:01:30]} 12. Qa4 {[%emt 0:03:26]} Bxb5 {[%emt 0:00:44]} 13. Qxb5+ {[%emt 0:00:23]} Nac6 {[%emt 0:00:05]} 14. Qe2 {[%emt 0:07:23]} Qd3 {[%emt 0:04:13]} 15. Nc3 {[%emt 0:06:18]} Qxe2 {[%emt 0:04:01]} 16. Nxe2 {[%emt 0:00:01]} Nd3 {[%emt 0:00:08]} 17. Bf4 {[%emt 0:01:51]} Nxf4 {[%emt 0:02:34]} 18. Nxf4 {[%emt 0:00:01]} h6 {[%emt 0:00:26]} 19. Rfd1 {[%emt 0:04:08]} Be7 {[%emt 0:02:56]} 20. Ne2 {[%emt 0:02:29]} Rd8 {[%emt 0:06:33]} 21. Rxd8+ {[%emt 0:05:19]} Kxd8 {[%emt 0:00:11]} 22. Ned4 {[%emt 0:03:56]} a6 {[%emt 0:00:39]} 23. Nxc6+ {[%emt 0:01:26]} bxc6 {[%emt 0:00:57]} 24. Nd4 {[%emt 0:02:28]} Kc7 {[%emt 0:06:02]} 25. Rc1 {[%emt 0:02:25]} c5 {[%emt 0:01:07]} 26. b4 {[%emt 0:12:05]} Rd8 {[%emt 0:00:09]} 27. Nb3 {[%emt 0:01:28]} Rd5 {[%emt 0:00:11]} 28. f4 {[%emt 0:01:23]} Kb6 {[%emt 0:00:23]} 29. bxc5+ {[%emt 0:00:49]} Bxc5+ {[%emt 0:00:05]} 30. Nxc5 {[%emt 0:00:36]} Rxc5 {[%emt 0:00:05]} 31. Rd1 {[%emt 0:01:21]} g5 {[%emt 0:07:14]} 32. g3 {[%emt 0:09:25]} gxf4 {[%emt 0:00:48]} 33. gxf4 {[%emt 0:00:00]} Rc4 {[%emt 0:00:07]} 34. Rf1 {[%emt 0:02:59]} Kc5 {[%emt 0:02:13]} 35. Rf2 {[%emt 0:03:55]} a5 {[%emt 0:01:33]} 36. Kg2 {[%emt 0:01:03]} Rc3 {[%emt 0:00:33]} 37. Rd2 {[%emt 0:00:57]} a4 {[%emt 0:02:41]} 38. Rd7 {[%emt 0:02:52]} Rc2+ {[%emt 0:00:45]} 39. Kg3 {[%emt 0:00:13]} Rxa2 {[%emt 0:00:04]} 40. Rxf7 {[%emt 0:00:08]} a3 {[%emt 0:00:17]} 41. Ra7 {[%emt 0:31:41]} Ra1 {[%emt 0:30:54]} 42. Kh4 {[%emt 0:00:00]} Kb4 {[%emt 0:00:00]} 43. Rb7+ {[%emt 0:00:00]} Kc4 {[%emt 0:00:00]} 44. Ra7 {[%emt 0:00:00]} Kd4 {[%emt 0:00:00]} 45. Kh5 {[%emt 0:00:00]} Ke4 {[%emt 0:00:00]} 46. Ra4+ {[%emt 0:00:00]} Kf5 {[%emt 0:00:00]} 47. Kxh6 {[%emt 0:00:00] normal} 1/2-1/2

[Event "GER-ch Youth U14 2019"]
[Site "Willingen"]
[Date "2019.06.15"]
[Round "9.12"]
[White "Haufe, Laurin"]
[Black "Sinnhoefer, Joshua"]
[Result "1/2-1/2"]
[ECO "C45"]
[WhiteElo "1995"]
[BlackElo "1466"]
[Annotator "NA"]
[PlyCount "46"]
[EventDate "2019.06.07"]
[EventType "swiss"]
[EventRounds "9"]
[EventCountry "GER"]
[SourceTitle "playchess.com"]
[Source "ChessBase"]
[SourceQuality "1"]
[TimeControl "40/5400+30:1800+30"]

1. e4 {[%emt 0:00:00]} e5 {[%emt 0:00:00]} 2. Nf3 {[%emt 0:00:00]} Nc6 {[%emt 0:00:00]} 3. d4 {[%emt 0:00:02]} exd4 {[%emt 0:00:00]} 4. Nxd4 {[%emt 0:00:06]} Nf6 {[%emt 0:00:00]} 5. Nxc6 {[%emt 0:00:09]} bxc6 {[%emt 0:00:02]} 6. e5 {[%emt 0:00:05]} Qe7 {[%emt 0:00:05]} 7. Qe2 {[%emt 0:00:06]} Nd5 {[%emt 0:00:04]} 8. c4 {[%emt 0:00:12]} Ba6 {[%emt 0:00:03]} 9. f4 {[%emt 0:07:03]} Qb4+ {[%emt 0:04:47]} 10. Qd2 {[%emt 0:07:48]} Nxf4 {[%emt 0:01:36]} 11. a3 {[%emt 0:04:18]} Qxd2+ {[%emt 0:02:29]} 12. Bxd2 {[%emt 0:00:18]} Ne6 {[%emt 0:00:05]} 13. Bc3 {[%emt 0:03:13]} Be7 {[%emt 0:01:52]} 14. Be2 {[%emt 0:01:33]} Nf4 {[%emt 0:03:21]} 15. Bf1 {[%emt 0:02:20]} O-O {[%emt 0:01:37]} 16. g3 {[%emt 0:00:17]} Ne6 {[%emt 0:01:21]} 17. Nd2 {[%emt 0:00:59]} Rfe8 {[%emt 0:04:33]} 18. O-O-O {[%emt 0:01:39]} Bg5 {[%emt 0:07:49]} 19. Kc2 {[%emt 0:02:59]} Rad8 {[%emt 0:03:24]} 20. Ne4 {[%emt 0:03:54]} Be3 {[%emt 0:03:14]} 21. b3 {[%emt 0:11:53]} c5 {[%emt 0:01:45]} 22. Bg2 {[%emt 0:02:18]} Bd4 {[%emt 0:01:47]} 23. Rhe1 {[%emt 0:01:22]} Kf8 {[%emt 0:01:58] normal} 1/2-1/2

[Event "GER-ch Youth U14 2019"]
[Site "Willingen"]
[Date "2019.06.15"]
[Round "9.13"]
[White "Schauties, Nico Antonio"]
[Black "Haack, Kevin"]
[Result "0-1"]
[ECO "D48"]
[WhiteElo "1866"]
[BlackElo "2033"]
[Annotator "NA"]
[PlyCount "58"]
[EventDate "2019.06.07"]
[EventType "swiss"]
[EventRounds "9"]
[EventCountry "GER"]
[SourceTitle "playchess.com"]
[Source "ChessBase"]
[SourceQuality "1"]
[TimeControl "40/5400+30:1800+30"]

1. d4 {[%emt 0:00:00]} d5 {[%emt 0:00:00]} 2. c4 {[%emt 0:00:00]} e6 {[%emt 0:00:00]} 3. Nf3 {[%emt 0:00:00]} Nf6 {[%emt 0:00:00]} 4. Nc3 {[%emt 0:00:28]} c6 {[%emt 0:00:00]} 5. e3 {[%emt 0:00:20]} Nbd7 {[%emt 0:00:01]} 6. Bd3 {[%emt 0:00:29]} dxc4 {[%emt 0:00:06]} 7. Bxc4 {[%emt 0:00:04]} b5 {[%emt 0:00:04]} 8. Bd3 {[%emt 0:00:16]} a6 {[%emt 0:00:06]} 9. O-O {[%emt 0:02:07]} c5 {[%emt 0:00:08]} 10. Re1 {[%emt 0:06:09]} Bb7 {[%emt 0:00:53]} 11. e4 {[%emt 0:00:21]} cxd4 {[%emt 0:02:40]} 12. Nxd4 {[%emt 0:03:56]} Nc5 {[%emt 0:00:39]} 13. Bc2 {[%emt 0:00:32]} e5 {[%emt 0:10:56]} 14. Nf5 {[%emt 0:01:22]} g6 {[%emt 0:00:38]} 15. Ng3 {[%emt 0:00:24]} Qc7 {[%emt 0:02:11]} 16. Bg5 {[%emt 0:04:00]} Be7 {[%emt 0:04:25]} 17. Bh6 {[%emt 0:02:48]} Rd8 {[%emt 0:02:39]} 18. Qe2 {[%emt 0:00:27]} Ne6 {[%emt 0:01:16]} 19. Be3 {[%emt 0:02:47]} O-O {[%emt 0:05:58]} 20. Rac1 {[%emt 0:02:49]} Qa5 {[%emt 0:13:28]} 21. Red1 {[%emt 0:04:10]} Nd4 {[%emt 0:04:45]} 22. Qe1 {[%emt 0:17:54]} Nxc2 {[%emt 0:02:58]} 23. Rxc2 {[%emt 0:00:02]} b4 {[%emt 0:00:26]} 24. Nb1 {[%emt 0:03:28]} Nxe4 {[%emt 0:02:12]} 25. Nxe4 {[%emt 0:02:41]} Bxe4 {[%emt 0:01:33]} 26. Rcd2 {[%emt 0:00:12]} Rxd2 {[%emt 0:03:11]} 27. Bxd2 {[%emt 0:00:10]} Bxb1 {[%emt 0:00:38]} 28. Rxb1 {[%emt 0:00:28]} Qxa2 {[%emt 0:00:23] normal} 29. g3 {[%emt 0:03:04]} Rd8 {[%emt 0:02:56] normal} 0-1

[Event "GER-ch Youth U14 2019"]
[Site "Willingen"]
[Date "2019.06.15"]
[Round "9.14"]
[White "Tham, Nam"]
[Black "Chassard, Cedric"]
[Result "1/2-1/2"]
[ECO "C11"]
[WhiteElo "1993"]
[BlackElo "1772"]
[Annotator "NA"]
[PlyCount "43"]
[EventDate "2019.06.07"]
[EventType "swiss"]
[EventRounds "9"]
[EventCountry "GER"]
[SourceTitle "playchess.com"]
[Source "ChessBase"]
[SourceQuality "1"]
[TimeControl "40/5400+30:1800+30"]

1. e4 {[%emt 0:00:00]} e6 2. d4 {[%emt 0:00:00]} d5 {[%emt 0:00:00]} 3. Nc3 {[%emt 0:00:06]} Nf6 {[%emt 0:00:00]} 4. e5 {[%emt 0:00:09]} Nfd7 {[%emt 0:00:00]} 5. f4 {[%emt 0:00:08]} c5 {[%emt 0:00:00]} 6. Nf3 {[%emt 0:00:04]} Nc6 {[%emt 0:00:06]} 7. Be3 {[%emt 0:00:08]} a6 {[%emt 0:00:02]} 8. Qd2 {[%emt 0:01:25]} b5 {[%emt 0:00:32]} 9. dxc5 Bxc5 {[%emt 0:00:33]} 10. Bd3 {[%emt 0:01:37]} Qb6 {[%emt 0:01:13]} 11. Bf2 {[%emt 0:00:48]} h6 {[%emt 0:06:12]} 12. O-O {[%emt 0:01:43]} Ra7 {[%emt 0:02:08]} 13. Rae1 {[%emt 0:02:41]} Ne7 {[%emt 0:04:32]} 14. Nh4 {[%emt 0:06:48]} g6 {[%emt 0:04:00]} 15. Ne2 {[%emt 0:06:08]} Nf5 {[%emt 0:06:24]} 16. Nxf5 {[%emt 0:00:28]} gxf5 {[%emt 0:01:43]} 17. c3 {[%emt 0:00:11]} Bxf2+ {[%emt 0:00:25]} 18. Rxf2 {[%emt 0:00:07]} Nc5 {[%emt 0:00:57]} 19. Nd4 {[%emt 0:00:21]} Bd7 {[%emt 0:19:51]} 20. Bb1 {[%emt 0:02:45]} h5 {[%emt 0:01:54]} 21. Qe3 {[%emt 0:01:18]} h4 {[%emt 0:01:10]} 22. Rf3 {[%emt 0:02:32] normal} 1/2-1/2

[Event "GER-ch Youth U14 2019"]
[Site "Willingen"]
[Date "2019.06.15"]
[Round "9.15"]
[White "Bress, Aaron"]
[Black "Simukov, Erik"]
[Result "0-1"]
[ECO "C95"]
[WhiteElo "1849"]
[BlackElo "1904"]
[Annotator "NA"]
[PlyCount "66"]
[EventDate "2019.06.07"]
[EventType "swiss"]
[EventRounds "9"]
[EventCountry "GER"]
[SourceTitle "playchess.com"]
[Source "ChessBase"]
[SourceQuality "1"]
[TimeControl "40/5400+30:1800+30"]

1. e4 {[%emt 0:00:00]} e5 {[%emt 0:00:00]} 2. Nf3 {[%emt 0:00:00]} Nc6 {[%emt 0:00:00]} 3. Bb5 {[%emt 0:00:00]} a6 {[%emt 0:00:00]} 4. Ba4 {[%emt 0:00:00]} Nf6 {[%emt 0:00:15]} 5. O-O {[%emt 0:00:00]} Be7 {[%emt 0:00:13]} 6. Re1 {[%emt 0:00:11]} b5 {[%emt 0:00:10]} 7. Bb3 {[%emt 0:00:05]} d6 {[%emt 0:00:20]} 8. c3 {[%emt 0:00:16]} O-O {[%emt 0:00:24]} 9. h3 {[%emt 0:00:05]} Nb8 {[%emt 0:01:15]} 10. d4 {[%emt 0:02:11]} Nbd7 {[%emt 0:00:44]} 11. Nbd2 {[%emt 0:05:44]} Bb7 {[%emt 0:00:50]} 12. Bc2 {[%emt 0:02:22]} Re8 {[%emt 0:01:10]} 13. Nf1 {[%emt 0:02:35]} Bf8 {[%emt 0:00:23]} 14. Ng3 g6 {[%emt 0:00:19]} 15. Nh2 {[%emt 0:10:52]} d5 {[%emt 0:02:15]} 16. dxe5 {[%emt 0:32:50]} Nxe4 {[%emt 0:01:57]} 17. Nxe4 {[%emt 0:01:39]} dxe4 {[%emt 0:00:06]} 18. Bxe4 {[%emt 0:01:06]} Bxe4 {[%emt 0:00:11]} 19. Rxe4 {[%emt 0:00:19]} Nxe5 {[%emt 0:05:28]} 20. Qxd8 {[%emt 0:08:10]} Raxd8 {[%emt 0:01:54]} 21. Bg5 {[%emt 0:01:29]} Nd3 {[%emt 0:07:54]} 22. Rxe8 {[%emt 0:12:09]} Rxe8 {[%emt 0:01:57]} 23. Ng4 {[%emt 0:00:19]} Bg7 {[%emt 0:27:08]} 24. Rd1 {[%emt 0:03:51]} Re1+ {[%emt 0:01:28]} 25. Rxe1 {[%emt 0:00:10]} Nxe1 {[%emt 0:00:06]} 26. Ne3 {[%emt 0:04:24]} Nd3 {[%emt 0:00:42]} 27. Nd5 {[%emt 0:02:17]} Nxb2 {[%emt 0:12:53]} 28. Nxc7 {[%emt 0:00:12]} Na4 {[%emt 0:01:58]} 29. Nxa6 {[%emt 0:01:51]} Nxc3 {[%emt 0:01:49]} 30. Nc7 {[%emt 0:01:25]} b4 {[%emt 0:00:18]} 31. Na6 {[%emt 0:01:56]} Bf8 {[%emt 0:02:44]} 32. Bf6 {[%emt 0:06:19]} Nxa2 {[%emt 0:00:13]} 33. Kf1 {[%emt 0:00:34]} Bd6 {[%emt 0:24:05] normal} 0-1

[Event "GER-ch Youth U14 2019"]
[Site "Willingen"]
[Date "2019.06.15"]
[Round "9.16"]
[White "Evering, Soeren"]
[Black "Wang, Xinyuan"]
[Result "1-0"]
[ECO "B42"]
[WhiteElo "1879"]
[BlackElo "1709"]
[Annotator "NA"]
[PlyCount "61"]
[EventDate "2019.06.07"]
[EventType "swiss"]
[EventRounds "9"]
[EventCountry "GER"]
[SourceTitle "playchess.com"]
[Source "ChessBase"]
[SourceQuality "1"]
[TimeControl "40/5400+30:1800+30"]

1. e4 {[%emt 0:00:00]} c5 {[%emt 0:00:00]} 2. Nf3 {[%emt 0:00:00]} e6 {[%emt 0:00:00]} 3. d4 {[%emt 0:00:09]} cxd4 {[%emt 0:00:14]} 4. Nxd4 {[%emt 0:00:05]} a6 {[%emt 0:00:06]} 5. Bd3 {[%emt 0:00:38]} Qc7 {[%emt 0:00:11]} 6. O-O {[%emt 0:00:53]} Nf6 {[%emt 0:00:24]} 7. c4 {[%emt 0:01:23]} b6 {[%emt 0:00:52]} 8. Nc3 {[%emt 0:00:40]} Bb7 {[%emt 0:00:13]} 9. Be3 d6 {[%emt 0:02:09]} 10. Rc1 {[%emt 0:04:33]} Nbd7 {[%emt 0:00:32]} 11. b4 {[%emt 0:02:46]} Rc8 {[%emt 0:00:46]} 12. f4 {[%emt 0:02:11]} Be7 {[%emt 0:01:44]} 13. Qf3 {[%emt 0:03:31]} Qb8 {[%emt 0:06:28]} 14. Qg3 {[%emt 0:19:32]} h5 {[%emt 0:07:07]} 15. f5 {[%emt 0:14:38]} e5 {[%emt 0:08:28]} 16. Nf3 {[%emt 0:01:21]} Ng4 {[%emt 0:02:08]} 17. Bg5 {[%emt 0:08:42]} Bxg5 {[%emt 0:01:18]} 18. Nxg5 {[%emt 0:00:11]} Qa7 {[%emt 0:03:06]} 19. b5 {[%emt 0:11:39]} Nc5 {[%emt 0:04:30]} 20. Be2 {[%emt 0:02:44]} Nf6 {[%emt 0:00:56]} 21. Rfd1 {[%emt 0:01:11]} Qb8 {[%emt 0:04:58]} 22. bxa6 {[%emt 0:04:21]} Bxa6 {[%emt 0:01:05]} 23. Nd5 {[%emt 0:00:22]} Nxd5 {[%emt 0:09:43]} 24. Rxd5 {[%emt 0:06:38]} Bb7 {[%emt 0:01:07]} 25. Rdd1 {[%emt 0:00:02]} Nxe4 {[%emt 0:08:26]} 26. Nxe4 {[%emt 0:00:35]} Bxe4 {[%emt 0:00:04]} 27. Qxg7 {[%emt 0:01:14]} Ke7 {[%emt 0:01:07]} 28. f6+ {[%emt 0:07:48]} Ke6 {[%emt 0:00:29]} 29. Bxh5 {[%emt 0:02:09]} Rxh5 30. Qg4+ Rf5 {[%emt 0:06:07]} 31. Qxe4 {[%emt 0:00:02] normal} 1-0